bitfinex-derivatives/quotes_ETHF0:USTF0_20241008
["timestamp","ask_amount","ask_price","bid_price","bid_amount"]
[1728378594646,9.6436,2426.0,2425.5,0.41233]
[1728378594647,3.62012,2425.7,2425.5,0.41233]
[1728378594847,0.8288,2425.6,2425.5,0.41233]
[1728378595351,0.8288,2425.6,2425.4,0.3902]
[1728378595352,0.41234,2425.5,2425.4,0.3902]
[1728378595543,0.41234,2425.5,2425.3,0.3962]
[1728378595544,1.25,2425.6,2425.1,0.3902]
[1728378595744,1.25,2425.6,2425.1,0.8026]
[1728378595745,0.41238,2425.3,2425.1,0.8026]
[1728378596053,0.41237,2425.4,2425.1,0.3902]
[1728378596344,1.49,2425.2,2425.1,0.80261]
[1728378598539,3.62017,2425.4,2425.2,0.41239]
[1728378598540,3.22,2425.3,2425.2,0.41239]
[1728378599546,3.22,2425.3,2425.1,0.8026]
[1728378600647,1.2202,2425.2,2425.1,0.3902]
[1728378602250,0.41243,2425.0,2424.7,0.41247]
[1728378602447,3.22,2424.8,2424.7,0.41247]
[1728378603549,6.4278,2424.8,2424.7,0.41247]
[1728378605154,6.84027,2424.8,2424.6,0.41249]
[1728378605356,6.4278,2424.8,2424.5,0.3986]
[1728378605560,3.6325,2424.6,2424.3,0.41254]
[1728378605760,3.6325,2424.6,2424.3,0.80414]
[1728378606752,3.22,2424.6,2424.3,0.3916]
[1728378607061,3.22,2424.6,2424.4,0.41253]
[1728378607660,3.22,2424.6,2424.5,0.41251]
[1728378608053,4.4174,2424.7,2424.3,0.3916]
[1728378608353,4.4174,2424.7,2424.6,0.4125]
[1728378610955,3.22,2424.7,2424.6,0.4125]
[1728378611667,3.22,2424.7,2424.5,0.4125]
[1728378611958,3.22,2424.7,2424.6,0.4125]
[1728378612259,3.22,2424.7,2424.5,0.41251]
[1728378612647,3.22,2424.6,2424.4,0.41252]
[1728378612858,0.8241,2424.5,2424.3,0.80414]
[1728378613057,3.22,2424.4,2424.3,0.80414]
[1728378613767,3.22,2424.4,2424.2,0.41256]
[1728378614155,3.63253,2424.4,2424.2,0.41256]
[1728378614864,3.22,2424.4,2424.2,0.41256]
[1728378615859,3.22,2424.4,2423.9,1.2047]
[1728378616160,3.22,2424.0,2423.9,1.61731]
[1728378616554,3.22,2424.0,2423.9,5.74291]
[1728378616957,3.22,2424.0,2423.9,1.22081]
[1728378617162,3.22,2424.0,2423.8,0.41262]
[1728378617362,1.63119,2424.1,2423.7,0.4061]
[1728378617363,3.22,2423.9,2423.7,0.4061]
[1728378617658,3.22,2423.9,2423.8,0.41263]
[1728378619055,3.22,2423.9,2423.7,0.4061]
[1728378619257,6.84042,2423.9,2423.7,0.81874]
[1728378619651,6.4278,2423.9,2423.7,0.4061]
[1728378619854,6.84042,2423.9,2423.7,0.4061]
[1728378620053,6.4278,2423.9,2423.7,0.81874]
[1728378620262,6.4278,2423.9,2423.7,0.4061]
[1728378620463,6.4278,2423.9,2423.7,0.81874]
[1728378621451,6.4278,2423.9,2423.6,0.41266]
[1728378621655,3.22,2423.6,2423.5,0.82107]
[1728378624260,3.22,2423.6,2423.5,0.82108]
[1728378625062,3.22,2423.6,2423.5,0.4084]
[1728378625367,6.4278,2423.6,2423.4,0.41269]
[1728378626161,3.2078,2423.6,2423.5,0.41268]
[1728378627060,3.2078,2423.6,2423.5,4.53908]
[1728378630666,3.22,2423.9,2423.5,4.1264]
[1728378630865,3.22,2423.9,2423.8,0.41263]
[1728378631762,5.9362,2424.0,2423.6,1.1769]
[1728378631763,5.5236,2424.0,2423.6,1.1769]
[1728378631969,5.5226,2424.0,2423.9,0.41262]
[1728378632161,8.7426,2424.0,2423.9,0.41262]
[1728378632466,8.7426,2424.0,2423.6,1.1769]
[1728378632667,8.7426,2424.0,2423.7,0.41265]
[1728378632867,3.22,2423.8,2423.6,1.19475]
[1728378633265,3.22,2423.8,2423.7,0.41265]
[1728378633868,3.22,2423.8,2423.6,0.3898]
[1728378634064,3.22,2423.8,2423.6,0.80245]
[1728378634371,3.22,2423.8,2423.6,0.41265]
[1728378634669,3.63264,2423.8,2423.5,0.41268]
[1728378634968,3.63264,2423.8,2423.4,0.4157]
[1728378634969,4.316,2423.8,2423.4,0.4157]
[1728378635166,4.316,2423.8,2423.7,0.41265]
[1728378636560,4.316,2423.8,2423.6,0.41265]
[1728378636766,4.72863,2423.8,2423.6,0.41265]
[1728378636964,4.316,2423.8,2423.6,0.41265]
[1728378637368,4.72863,2423.8,2423.6,0.41265]
[1728378637768,3.22,2423.8,2423.4,0.4157]
[1728378638060,3.22,2423.8,2423.7,0.41265]
[1728378638869,3.22,2423.8,2423.4,0.4157]
[1728378639074,3.63267,2423.6,2423.3,0.41271]
[1728378639265,3.22,2423.4,2423.3,0.80752]
[1728378640370,4.0014,2423.5,2423.3,0.3948]
[1728378640573,4.0014,2423.5,2423.4,0.4127]
[1728378640871,0.7936,2423.5,2423.4,0.4127]
[1728378644463,2.2836,2423.5,2423.4,0.4127]
[1728378650878,2.69628,2423.5,2423.4,0.4127]
[1728378651077,2.2836,2423.5,2423.4,0.4127]
[1728378651774,2.2836,2423.5,2423.2,3.2078]
[1728378651977,1.49,2423.3,2423.2,0.41273]
[1728378657780,1.9071,2423.3,2423.2,0.41273]
[1728378657981,6.0335,2423.3,2422.5,3.3188]
[1728378658183,1.49,2422.8,2422.7,0.41282]
[1728378660180,1.90281,2422.8,2422.6,0.41284]
[1728378660481,0.41286,2422.5,2422.2,0.4129]
[1728378660685,9.9228,2422.7,2422.2,0.4129]
[1728378660686,1.49,2422.3,2422.2,0.4129]
[1728378660883,1.49,2422.3,2422.0,0.4086]
[1728378661182,1.49,2422.1,2422.0,0.41293]
[1728378662379,3.22,2422.1,2421.8,0.399]
[1728378662583,0.68311,2422.2,2421.8,0.399]
[1728378662884,3.90311,2422.2,2421.8,0.399]
[1728378663085,3.90311,2422.2,2422.1,0.41292]
[1728378663481,3.90311,2422.2,2421.7,0.4086]
[1728378663681,3.2078,2422.1,2421.9,0.41295]
[1728378663882,3.22,2422.0,2421.9,0.41295]
[1728378664079,3.6342,2422.0,2421.9,0.41295]
[1728378664482,6.4278,2422.1,2422.0,0.41294]
[1728378664687,3.2078,2422.1,2422.0,0.41294]
[1728378664987,3.2078,2422.1,2422.0,4.54174]
[1728378665980,3.6342,2422.3,2422.0,4.1288]
[1728378666186,12.10730786,2423.8,2422.6,0.41284]
[1728378666187,4.412,2422.7,2422.6,0.41284]
[1728378666382,4.412,2422.7,2422.1,4.1288]
[1728378666383,4.316,2422.7,2422.5,0.41284]
[1728378666580,4.4598,2422.6,2422.5,0.41284]
[1728378667780,4.4598,2422.6,2422.1,0.4168]
[1728378667983,4.4598,2422.6,2422.2,0.4129]
[1728378667984,3.22,2422.3,2422.2,0.4129]
[1728378668588,3.22,2422.3,2422.2,4.5409]
[1728378668788,3.22,2422.5,2422.3,0.41289]
[1728378668989,3.22,2422.5,2422.1,0.8136]
[1728378669191,3.22,2422.5,2422.4,0.41287]
[1728378676102,6.4278,2422.7,2422.4,4.128]
[1728378676405,6.4278,2422.7,2422.6,0.41284]
[1728378676788,6.4278,2422.7,2422.6,0.81384]
[1728378678196,3.2078,2422.7,2422.6,4.94184]
[1728378679897,3.22,2423.1,2422.8,1.032]
[1728378680109,5.2418,2423.4,2422.9,0.3955]
[1728378680110,3.6225,2423.3,2422.9,0.3955]
[1728378680292,3.6225,2423.3,2423.2,0.41273]
[1728378680497,3.22,2423.3,2423.2,0.41273]
[1728378681093,3.6103,2423.4,2423.0,0.8394]
[1728378681299,3.6146,2423.5,2423.0,1.87131]
[1728378681500,3.6146,2423.5,2423.4,0.4127]
[1728378681697,3.22,2423.5,2423.4,0.4127]
[1728378685302,4.0139,2423.7,2423.4,4.1264]
[1728378685601,4.0139,2423.7,2423.6,0.41267]
[1728378686114,4.0139,2423.7,2423.6,0.80277]
[1728378686407,3.6119,2423.7,2423.6,0.80277]
[1728378687609,3.5562723,2424.0,2423.6,4.5165]
[1728378687610,3.3038,2424.0,2423.6,4.5165]
[1728378687910,3.2078,2424.0,2423.9,0.41262]
[1728378689199,0.8237,2424.1,2424.0,0.4126]
[1728378689601,3.6066,2424.3,2424.2,0.41256]
[1728378696310,3.6066,2424.3,2424.2,0.41256]
[1728378696618,3.6066,2424.3,2424.0,0.4118]
[1728378696915,3.6066,2424.3,2424.2,0.41256]
[1728378698205,6.8144,2424.3,2424.2,0.41256]
[1728378701512,3.6066,2424.3,2424.2,0.41256]
[1728378701713,6.8144,2424.3,2424.2,0.41256]
[1728378706425,5.0844,2424.3,2424.2,0.41256]
[1728378709126,5.0844,2424.3,2424.1,0.41257]
[1728378709422,1.49,2424.2,2424.1,0.41257]
[1728378715429,3.5944,2424.3,2424.0,1.9018]
[1728378715733,3.5944,2424.3,2424.2,0.41256]
[1728378717426,5.0844,2424.3,2424.2,0.41256]
[1728378717627,5.49695,2424.3,2424.2,0.41256]
[1728378718732,5.0844,2424.3,2424.2,0.41256]
[1728378720925,3.2078,2424.3,2424.2,0.41256]
[1728378722537,3.6265,2424.3,2424.2,0.41256]
[1728378722838,4.0188,2424.3,2424.2,0.41256]
[1728378728434,4.0188,2424.3,2424.0,0.4118]
[1728378728634,1.49,2424.1,2424.0,0.4118]
[1728378728830,1.49,2424.1,2424.0,0.8244]
[1728378729236,6.02819,2424.1,2423.5,1.03171]
[1728378729436,1.49,2423.8,2423.7,0.83984]
[1728378729837,2.2686,2423.8,2423.7,0.83984]
[1728378731945,2.2686,2423.8,2423.7,0.41264]
[1728378732634,3.16850117,2423.8,2423.4,0.3948]
[1728378732839,1.49,2423.6,2423.4,0.3948]
[1728378733238,1.49,2423.6,2423.5,0.41268]
[1728378733439,1.8969,2423.7,2423.6,0.41267]
[1728378733738,2.79680117,2423.7,2423.6,0.41267]
[1728378734040,0.41267,2423.6,2423.4,0.4127]
[1728378734243,1.49,2423.5,2423.4,0.4127]
[1728378736451,1.49,2423.5,2423.3,0.41271]
[1728378736648,0.8048,2423.4,2423.3,0.41271]
[1728378736949,4.9312,2423.4,2423.3,0.41271]
[1728378737540,4.9312,2423.4,2423.1,0.3884]
[1728378737847,1.887,2423.3,2423.2,0.41273]
[1728378738735,1.887,2423.3,2423.2,4.53913]
[1728378738736,0.397,2423.3,2423.2,4.53913]
[1728378738945,4.6978,2423.6,2423.2,5.6164]
[1728378739139,0.096,2423.8,2423.4,1.49]
[1728378739341,5.5373,2423.9,2423.8,0.41263]
[1728378739549,7.0273,2423.9,2423.8,0.41263]
[1728378740549,5.5373,2423.9,2423.8,0.41263]
[1728378742739,4.4413,2423.9,2423.8,0.41263]
[1728378745252,8.5669,2423.9,2423.5,0.4276]
[1728378745454,3.22,2423.7,2423.6,0.41266]
[1728378746546,3.22,2423.7,2423.5,0.41267]
[1728378746745,3.22,2423.7,2423.6,0.41267]
[1728378747744,0.41267,2423.6,2423.3,0.41271]
[1728378747945,7.2532,2423.5,2423.1,0.8115]
[1728378748253,7.6652,2423.5,2423.3,0.4127]
[1728378748552,4.53911,2423.4,2423.1,0.41274]
[1728378748749,6.4278,2423.2,2423.1,0.41274]
[1728378748949,10.555,2423.2,2423.1,0.41274]
[1728378749149,7.335,2423.2,2423.1,0.41274]
[1728378750845,3.2078,2423.2,2423.1,0.41274]
[1728378751047,3.2078,2423.2,2422.9,0.4169]
[1728378751254,1.9077,2423.1,2423.0,0.41276]
[1728378755952,5.1277,2423.1,2423.0,0.41276]
[1728378756861,1.9077,2423.1,2423.0,0.41276]
[1728378757152,0.392,2423.1,2423.0,0.41276]
[1728378757351,1.095,2423.2,2422.9,0.4169]
[1728378757551,3.6336,2423.3,2423.2,0.41273]
[1728378757758,4.7286,2423.3,2423.2,0.41273]
[1728378762352,1.5086,2423.3,2423.2,0.41273]
[1728378762558,2.9986,2423.3,2423.2,0.41273]
[1728378763556,1.9036,2423.3,2423.2,0.41273]
[1728378763765,2.9986,2423.3,2423.2,0.41273]
[1728378764265,2.9986,2423.3,2423.1,0.41274]
[1728378764462,2.9986,2423.3,2422.9,0.4169]
[1728378764760,2.9986,2423.3,2423.0,0.41277]
[1728378765267,2.9986,2423.3,2423.2,0.41273]
[1728378765459,1.9036,2423.3,2423.2,0.41273]
[1728378765660,2.9986,2423.3,2423.2,0.41273]
[1728378768272,1.49,2423.3,2423.2,0.41273]
[1728378768464,2.585,2423.3,2423.2,0.41273]
[1728378769868,0.64154792,2423.4,2423.3,0.41272]
[1728378770066,3.22654792,2423.4,2423.3,0.41272]
[1728378771172,2.13154792,2423.4,2423.3,0.41272]
[1728378771372,3.22654792,2423.4,2423.3,0.41272]
[1728378771769,2.13154792,2423.4,2423.3,0.41272]
[1728378772161,3.22654792,2423.4,2423.3,0.41272]
[1728378773468,7.35294792,2423.4,2422.9,0.4169]
[1728378773669,1.73654792,2423.4,2423.3,0.41272]
[1728378774169,5.86294792,2423.4,2423.3,0.41272]
[1728378774970,7.35294792,2423.4,2423.3,0.41272]
[1728378775361,6.25794792,2423.4,2423.2,0.41272]
[1728378775562,1.49,2423.3,2423.2,0.41272]
[1728378778573,1.8766,2423.3,2423.2,0.41272]
[1728378780271,0.64154792,2423.4,2422.9,0.4169]
[1728378780272,1.8863,2423.4,2423.3,0.41272]
[1728378781065,1.49,2423.4,2423.3,0.41272]
[1728378781265,2.585,2423.4,2423.3,0.41272]
[1728378782174,1.49,2423.4,2423.3,0.41272]
[1728378782377,2.585,2423.4,2423.3,0.41272]
[1728378788076,2.585,2423.4,2422.9,0.4169]
[1728378788280,0.4171,2423.3,2423.2,0.41272]
[1728378788473,1.9071,2423.3,2423.2,0.41272]
[1728378788986,1.9071,2423.3,2423.2,0.41273]
[1728378789179,1.9071,2423.3,2423.1,0.41274]
[1728378789376,0.4075,2423.2,2423.1,0.41274]
[1728378790481,0.4075,2423.2,2423.0,0.41276]
[1728378790482,3.6153,2423.2,2423.0,0.41276]
[1728378790685,1.8783,2423.1,2423.0,0.41276]
[1728378790993,1.8783,2423.1,2422.9,0.82967]
[1728378791178,0.3932,2423.0,2422.9,0.82969]
[1728378791579,0.3932,2423.0,2422.9,0.41279]
[1728378791580,4.5204,2423.0,2422.9,0.41279]
[1728378792287,4.5204,2423.0,2422.6,0.4208]
[1728378792487,4.5204,2423.0,2422.6,0.41283]
[1728378792488,4.6978,2422.8,2422.6,0.41283]
[1728378792789,0.824,2422.7,2422.6,0.41283]
[1728378792982,1.2172,2422.7,2422.6,0.41283]
[1728378793182,1.2172,2422.7,2422.5,0.83215]
[1728378793384,1.49,2422.6,2422.5,0.4193]
[1728378793582,1.49,2422.6,2422.5,0.83215]
[1728378795985,1.49,2422.6,2422.5,0.41285]
[1728378796489,1.49,2422.6,2422.4,0.4029]
[1728378796688,1.49,2422.6,2422.4,0.81577]
[1728378796891,1.49,2422.6,2422.5,0.41285]
[1728378798790,2.585,2422.6,2422.5,0.41285]
[1728378799292,0.68216,2422.6,2422.4,0.4029]
[1728378799588,5.7928,2422.8,2422.7,0.41282]
[1728378799794,4.6978,2422.8,2422.7,0.41282]
[1728378799987,1.49,2422.8,2422.7,0.41282]
[1728378803696,2.585,2422.8,2422.7,0.41282]
[1728378809599,1.49,2422.8,2422.7,0.41282]
[1728378810795,3.2078,2422.9,2422.4,1.8929]
[1728378810996,3.2078,2422.9,2422.8,0.4128]
[1728378811390,1.49,2423.0,2422.9,0.41279]
[1728378811991,1.49,2423.0,2422.7,0.8114]
[1728378812197,1.49,2422.8,2422.7,1.22422]
[1728378815300,4.0216,2422.9,2422.7,0.8114]
[1728378815499,0.388,2422.9,2422.8,0.4128]
[1728378815999,4.00859,2422.9,2422.7,1.22421]
[1728378816297,1.9107,2422.8,2422.7,0.80721]
[1728378816700,1.9107,2422.8,2422.7,0.3944]
[1728378816899,1.9107,2422.8,2422.7,0.80722]
[1728378818801,1.49,2422.8,2422.7,0.80722]
[1728378828414,1.49,2422.8,2422.7,0.41282]
[1728378832411,0.41282,2422.7,2422.4,0.41286]
[1728378832721,3.2078,2422.5,2422.3,0.41289]
[1728378832917,2.584,2422.4,2422.0,0.3954]
[1728378833115,0.4253,2422.3,2422.1,0.41291]
[1728378833312,1.49,2422.1,2422.0,0.80833]
[1728378833513,1.49,2422.1,2422.0,0.80834]
[1728378834521,0.8309,2422.3,2422.0,0.3954]
[1728378834716,0.096,2422.7,2422.2,4.6978]
[1728378834923,1.49,2422.9,2422.8,0.41279]
[1728378835716,1.49,2422.9,2422.5,0.4178]
[1728378835918,1.49,2422.7,2422.6,0.41284]
[1728378836516,7.5218,2422.9,2422.8,0.4128]
[1728378836718,8.41253901,2422.9,2422.5,0.4178]
[1728378836923,7.5218,2422.9,2422.5,0.4178]
[1728378837117,7.5218,2422.9,2422.6,0.41283]
[1728378837118,7.93459,2422.9,2422.6,0.41283]
[1728378837618,3.22,2422.7,2422.5,0.83064]
[1728378838011,3.22,2422.7,2422.6,0.41284]
[1728378842019,3.22,2422.7,2422.5,0.4178]
[1728378842224,3.63283,2422.7,2422.5,0.83064]
[1728378842418,1.1986,2422.6,2422.5,0.83064]
[1728378842617,4.4064,2422.6,2422.5,0.83064]
[1728378843125,4.4064,2422.6,2422.3,0.4124]
[1728378843426,3.22,2422.5,2422.4,0.41286]
[1728378844319,3.22,2422.5,2422.4,0.82726]
[1728378845930,3.22,2422.5,2422.4,0.4144]
[1728378846321,3.22,2422.5,2422.0,0.4002]
[1728378846519,4.66105413,2422.6,2422.1,0.3922]
[1728378846520,3.6329,2422.3,2422.1,0.3922]
[1728378846720,0.4223,2422.2,2422.1,0.3922]
[1728378847021,1.2109,2422.2,2422.1,0.80512]
[1728378847816,1.2109,2422.2,2422.1,0.3922]
[1728378848021,1.2109,2422.2,2422.1,0.41292]
[1728378848521,1.2109,2422.2,2422.0,0.3904]
[1728378848828,1.2109,2422.2,2422.1,0.41292]
[1728378850028,4.0209,2422.2,2422.0,0.3904]
[1728378850429,4.0209,2422.2,2422.1,0.41292]
[1728378850731,0.8131,2422.2,2422.1,0.41292]
[1728378851030,0.8131,2422.2,2422.1,0.81682]
[1728378851420,4.0209,2422.2,2422.1,0.81682]
[1728378852427,14.1497,2422.2,2421.6,0.096]
[1728378852734,6.4278,2421.7,2421.5,0.41302]
[1728378853028,0.4023,2421.6,2421.5,0.41302]
[1728378853428,0.4023,2421.6,2421.3,0.4153]
[1728378853429,4.6938,2421.7,2421.6,0.41301]
[1728378854226,4.6938,2421.7,2421.4,0.41304]
[1728378854430,4.6938,2421.7,2421.3,0.4153]
[1728378854431,5.0961,2421.7,2421.3,0.4153]
[1728378854728,5.0961,2421.7,2421.5,0.41301]
[1728378855526,5.0961,2421.7,2421.3,0.4153]
[1728378855924,5.0961,2421.7,2421.5,0.41302]
[1728378857127,5.0961,2421.7,2421.6,0.41301]
[1728378858335,4.0031,2421.7,2421.6,0.41301]
[1728378862235,0.7953,2421.7,2421.6,0.41301]
[1728378862529,2.2853,2421.7,2421.6,0.41301]
[1728378863230,1.8923,2421.7,2421.6,0.41301]
[1728378864436,1.49,2421.7,2421.6,0.41301]
[1728378868137,1.49,2421.7,2421.5,0.41301]
[1728378868339,1.9087,2421.6,2421.5,0.41301]
[1728378872447,2.3325,2421.6,2421.5,0.41301]
[1728378875559,2.74551,2421.6,2421.5,0.41302]
[1728378876439,2.74551,2421.6,2421.3,0.4153]
[1728378876440,2.74551,2421.6,2421.4,0.41303]
[1728378876637,1.8836,2421.5,2421.4,0.41303]
[1728378878249,2.29662,2421.5,2421.4,0.41303]
[1728378878447,1.8836,2421.5,2421.4,0.41303]
[1728378901061,3.2078,2421.7,2421.3,0.4153]
[1728378901261,4.2998,2421.7,2421.6,0.41301]
[1728378901460,5.7898,2421.7,2421.6,0.41301]
[1728378901764,5.7898,2421.7,2421.5,0.41302]
[1728378902065,1.9014,2421.6,2421.5,0.41302]
[1728378903062,1.49,2421.6,2421.5,0.41302]
[1728378906765,0.4114,2421.8,2421.5,4.1296]
[1728378906972,0.4114,2421.8,2421.7,0.41299]
[1728378907162,1.9014,2421.8,2421.7,0.41299]
[1728378908474,1.9014,2421.8,2421.7,0.81559]
[1728378910866,1.9014,2421.8,2421.7,0.41299]
[1728378911772,1.49,2421.8,2421.7,0.41299]
[1728378911972,1.909,2421.8,2421.7,0.41299]
[1728378912167,1.909,2421.8,2421.6,0.413]
[1728378912365,1.909,2421.8,2421.6,0.41299]
[1728378912864,1.909,2421.8,2421.7,0.41299]
[1728378913270,3.001,2421.8,2421.7,0.41299]
[1728378915469,3.001,2421.8,2421.6,0.41299]
[1728378915674,1.49,2421.7,2421.6,0.41301]
[1728378915872,1.49,2421.7,2421.5,0.81701]
[1728378916073,1.903,2421.7,2421.5,0.41301]
[1728378916370,1.903,2421.7,2421.4,0.41303]
[1728378916581,1.49,2421.5,2421.4,0.41303]
[1728378917881,2.6838,2421.5,2421.4,0.41303]
[1728378918679,2.283,2421.5,2421.4,0.41303]
[1728378919476,0.2527419,2421.8,2421.2,0.8011]
[1728378919680,1.49,2421.5,2421.4,0.41304]
[1728378920678,1.49,2421.5,2421.4,4.54264]
[1728378920873,1.49,2421.5,2421.4,0.41304]
[1728378921080,0.8165,2421.8,2421.4,4.54264]
[1728378921274,0.8165,2421.8,2421.7,0.41299]
[1728378921275,2.3065,2421.8,2421.7,0.41299]
[1728378923378,2.3065,2421.8,2421.6,0.4141]
[1728378923379,2.71947,2421.8,2421.6,0.413]
[1728378923779,2.3065,2421.8,2421.5,0.3879]
[1728378923980,2.3065,2421.8,2421.7,0.41299]
[1728378923981,0.8165,2421.8,2421.7,0.41299]
[1728378924776,2.3065,2421.8,2421.7,0.41299]
[1728378926280,3.18931201,2421.8,2421.7,0.41299]
[1728378926681,2.3065,2421.8,2421.7,0.41299]
[1728378931493,3.3975,2421.8,2421.7,0.41299]
[1728378931892,3.81048,2421.8,2421.6,0.413]
[1728378932089,1.49,2421.7,2421.6,0.413]
[1728378933088,1.49,2421.7,2421.5,0.80091]
[1728378933292,3.2078,2421.6,2421.5,0.41301]
[1728378934692,3.2078,2421.6,2421.3,0.3994]
[1728378934693,1.49,2421.7,2421.6,0.41301]
[1728378934889,4.6978,2421.7,2421.6,0.41301]
[1728378935089,4.6978,2421.7,2421.5,0.41301]
[1728378935297,1.49,2421.6,2421.5,0.41301]
[1728378935796,1.49,2421.6,2421.4,0.41303]
[1728378935997,2.3094,2421.5,2421.4,0.41303]
[1728378937901,1.9073,2421.5,2421.4,0.41303]
[1728378938399,1.49,2421.6,2421.3,0.3994]
[1728378938890,1.49,2421.6,2421.5,0.41302]
[1728378944099,1.8784,2421.6,2421.5,0.41302]
[1728378945294,2.2886,2421.6,2421.5,0.41302]
[1728378945500,2.2886,2421.6,2421.4,0.41302]
[1728378945702,2.2886,2421.6,2421.5,0.41302]
[1728378949207,1.8784,2421.6,2421.5,0.41302]
[1728378949798,3.2078,2421.7,2421.3,0.3994]
[1728378950100,3.8476,2421.8,2421.4,3.2078]
[1728378950307,3.8476,2421.8,2421.7,0.41299]
[1728378951016,2.339,2421.8,2421.7,0.41299]
[1728378951205,1.49,2421.8,2421.7,0.41299]
[1728378952696,1.9163,2421.8,2421.7,0.41299]
[1728378955003,3.0073,2421.8,2421.7,0.41299]
[1728378956603,3.88980024,2421.8,2421.7,0.41299]
[1728378956905,3.0073,2421.8,2421.7,0.41299]
[1728378957308,3.8898187,2421.8,2421.7,0.41299]
[1728378957507,3.0073,2421.8,2421.7,0.41299]
[1728378958308,1.9163,2421.8,2421.7,0.41299]
[1728378960915,1.9163,2421.8,2421.3,0.3994]
[1728378961216,1.49,2421.4,2421.3,0.3994]
[1728378961414,1.49,2421.4,2421.3,0.81246]
[1728378963311,0.41306,2421.3,2421.2,0.4007]
[1728378963516,6.4538,2421.3,2420.8,3.2078]
[1728378963721,1.49,2420.9,2420.8,3.2078]
[1728378964010,1.49,2420.9,2420.7,1.44590911]
[1728378964011,4.6978,2420.9,2420.7,1.03275911]
[1728378964212,1.22574,2420.8,2420.7,1.03275911]
[1728378964413,0.4132,2420.5,2420.2,0.096]
[1728378964610,4.9438,2420.8,2420.2,0.41324]
[1728378964611,1.49,2420.3,2420.2,0.41324]
[1728378965007,3.2078,2420.6,2420.2,4.132]
[1728378965214,2.581,2420.7,2420.3,2.7145]
[1728378965415,2.581,2420.7,2420.6,0.41318]
[1728378965814,1.49,2420.7,2420.6,0.41318]
[1728378968313,6.0226,2420.7,2420.3,1.2245]
[1728378968518,1.49,2420.4,2420.3,1.24662]
[1728378968814,1.49,2420.4,2420.3,0.81932]
[1728378969213,1.49,2420.4,2420.2,0.41324]
[1728378969422,1.8795,2420.3,2420.2,0.41324]
[1728378969619,2.2809,2420.3,2420.1,0.41325]
[1728378969821,1.49,2420.2,2420.1,0.41326]
[1728378971224,8.8298,2420.2,2419.7,0.8217]
[1728378971426,8.8298,2420.2,2420.0,0.41327]
[1728378971427,3.2078,2420.2,2420.0,0.41327]
[1728378971620,0.3895,2420.3,2420.2,0.41325]
[1728378972219,4.5215,2420.3,2420.1,0.41326]
[1728378972522,3.23,2420.2,2420.1,0.41326]
[1728378974223,4.321,2420.2,2420.1,0.41326]
[1728378976325,4.321,2420.2,2420.0,0.41327]
[1728378976524,3.2078,2420.1,2420.0,0.41327]
[1728378977626,7.3398,2420.1,2420.0,0.41327]
[1728378977831,3.23,2420.1,2420.0,0.41327]
[1728378978434,6.4378,2420.1,2420.0,0.41327]
[1728378978930,3.23,2420.1,2420.0,0.41327]
[1728378979924,1.4805,2420.3,2420.2,0.41325]
[1728378980228,1.091,2420.4,2419.8,4.66196]
[1728378980432,1.091,2420.5,2419.9,1.03325]
[1728378980620,4.321,2420.5,2420.4,0.41321]
[1728378981120,8.4522,2420.5,2419.9,1.03325]
[1728378981326,3.23,2420.2,2419.8,3.6287]
[1728378981526,3.23,2420.2,2420.1,0.41326]
[1728378982727,6.4378,2420.4,2420.3,0.41323]
[1728378983438,3.23,2420.4,2420.3,0.41323]
[1728378986939,6.4378,2420.4,2420.3,0.41323]
[1728378989136,3.23,2420.4,2420.3,0.41323]
[1728378990839,3.23,2420.4,2420.3,0.81433]
[1728378991339,3.23,2420.4,2420.3,0.41323]
[1728378991539,3.23,2420.4,2420.2,0.4224]
[1728378991540,6.4378,2420.4,2420.2,0.4224]
[1728378991843,6.4378,2420.4,2420.2,0.83564]
[1728378992145,6.4378,2420.4,2420.0,0.41327]
[1728378992341,3.23,2420.2,2419.8,0.82]
[1728378992548,0.4266,2420.1,2420.0,0.41327]
[1728378993945,0.4266,2420.1,2419.8,0.82]
[1728378994145,3.23,2419.9,2419.6,0.4002]
[1728378994342,3.23,2419.9,2419.8,0.41331]
[1728378996241,3.23,2419.9,2419.6,0.4051]
[1728378996445,3.23,2419.7,2419.6,0.81845]
[1728378999648,3.23,2419.7,2419.6,0.41335]
[1728378999845,0.41335,2419.6,2419.3,0.41339]
[1728379000047,3.23,2419.4,2419.3,0.4134]
[1728379000351,4.385,2419.4,2419.0,0.3887]
[1728379000554,3.23,2419.1,2419.0,0.80215]
[1728379001350,3.23,2419.1,2419.0,0.41345]
[1728379003648,3.23,2419.1,2418.9,3.2078]
[1728379003851,0.4069,2419.0,2418.9,3.62127]
[1728379004259,0.325,2419.0,2418.9,3.62127]
[1728379004463,4.385,2419.1,2419.0,0.41345]
[1728379004763,3.23,2419.1,2419.0,0.41345]
[1728379005260,3.2078,2419.5,2419.0,4.1336]
[1728379005555,3.2078,2419.5,2419.4,0.41338]
[1728379005959,6.4378,2419.5,2419.4,0.41338]